fUST/lending_fUST_20250802
["ID","MTS","AMOUNT","RATE_DAILY","PERIOD"]
[376686124,1754079041715,-802.05,0.00020276,2]
[376686126,1754079041725,-392.78,0.00020277,2]
[376686128,1754079041734,-460.0,0.00020277,2]
[376686130,1754079041744,-604.34,0.00020277,2]
[376686132,1754079041753,-460.0,0.00020277,2]
[376686134,1754079041763,-460.0,0.00020277,2]
[376686136,1754079041772,-460.0,0.00020277,2]
[376686138,1754079041782,-460.0,0.00020277,2]
[376686140,1754079041791,-534.63346801,0.00020277,2]
[376686142,1754079041802,-426.97510261,0.00020277,2]
[376686144,1754079041811,-460.0,0.00020277,2]
[376686146,1754079041831,-460.0,0.00020277,2]
[376686148,1754079041840,-460.0,0.00020277,2]
[376686150,1754079041850,-460.0,0.00020277,2]
[376686152,1754079041860,-460.0,0.00020277,2]
[376686154,1754079041869,-460.0,0.00020277,2]
[376686156,1754079041879,-460.0,0.00020277,2]
[376686158,1754079041888,-557.58,0.00020277,2]
[376686160,1754079041898,-460.0,0.00020277,2]
[376686162,1754079041907,-460.0,0.00020277,2]
[376686165,1754079041917,-460.0,0.00020277,2]
[376686167,1754079041926,-460.0,0.00020277,2]
[376686168,1754079041935,-460.0,0.00020277,2]
[376686171,1754079041945,-460.0,0.00020277,2]
[376686173,1754079041955,-559.69,0.00020277,2]
[376686175,1754079041965,-460.0,0.00020277,2]
[376686177,1754079041975,-460.0,0.00020277,2]
[376686179,1754079041984,-460.0,0.00020277,2]
[376686180,1754079041994,-1144.77,0.00020277,2]
[376686183,1754079042003,-460.0,0.00020277,2]
[376686185,1754079042013,-460.0,0.00020277,2]
[376686187,1754079042022,-460.0,0.00020277,2]
[376686189,1754079042035,-461.26980167,0.00020277,2]
[376686190,1754079042044,-460.0,0.00020277,2]
[376686193,1754079042053,-460.0,0.00020277,2]
[376686195,1754079042063,-460.0,0.00020277,2]
[376686197,1754079042073,-460.0,0.00020277,2]
[376686199,1754079042082,-460.0,0.00020277,2]
[376686200,1754079042091,-526.45362281,0.00020277,2]
[376686202,1754079042101,-460.0,0.00020277,2]
[376686204,1754079042112,-460.0,0.00020277,2]
[376686207,1754079042122,-466.81932942,0.00020277,2]
[376686209,1754079042131,-598.69,0.00020277,2]
[376686211,1754079042141,-460.0,0.00020277,2]
[376686213,1754079042150,-532.94,0.00020277,2]
[376686214,1754079042160,-460.0,0.00020277,2]
[376686216,1754079042170,-460.0,0.00020278,2]
[376686219,1754079042179,-460.0,0.00020278,2]
[376686221,1754079042192,-469.43909593,0.00020278,2]
[376686222,1754079042202,-460.0,0.00020278,2]
[376686224,1754079042211,-460.0,0.00020278,2]
[376686226,1754079042220,-460.0,0.00020278,2]
[376686228,1754079042230,-460.0,0.00020278,2]
[376686230,1754079042239,-460.0,0.00020278,2]
[376686232,1754079042248,-460.0,0.00020278,2]
[376686234,1754079042257,-460.0,0.00020278,2]
[376686236,1754079042266,-460.0,0.00020278,2]
[376686239,1754079042275,-460.0,0.00020279,2]
[376686241,1754079042286,-460.0,0.00020279,2]
[376686243,1754079042296,-460.0,0.00020279,2]
[376686245,1754079042304,-2538.9,0.00020279,2]
[376686247,1754079042314,-460.0,0.00020279,2]
[376686249,1754079042323,-460.0,0.00020279,2]
[376686250,1754079042332,-460.0,0.00020279,2]
[376686252,1754079042341,-460.0,0.00020279,2]
[376686254,1754079042350,-460.0,0.0002028,2]
[376686256,1754079042360,-460.0,0.0002028,2]
[376686258,1754079042369,-1000.0,0.00020321,2]
[376686261,1754079042378,-460.0,0.0002055,2]
[376686263,1754079042387,-7075.94,0.0002055,2]
[376686265,1754079042396,-460.0,0.0002055,2]
[376686267,1754079042405,-607.69116681,0.0002055,2]
[376686269,1754079042415,-429.29,0.0002055,2]
[376686272,1754079042424,-460.0,0.0002055,2]
[376686274,1754079042433,-491.04138746,0.0002055,2]
[376686276,1754079042443,-460.0,0.0002055,2]
[376686278,1754079042452,-664.22,0.0002055,2]
[376686280,1754079042461,-802.05,0.0002055,2]
[376686282,1754079042471,-460.0,0.00020551,2]
[376686284,1754079042480,-289.58472283,0.00020551,2]
[376686285,1754079042490,-460.0,0.00020551,2]
[376686286,1754079042500,-460.0,0.00020551,2]
[376686288,1754079042509,-210.50167997,0.00020551,2]
[376686290,1754079042519,-460.0,0.00020551,2]
[376686292,1754079042530,-460.0,0.00020551,2]
[376686293,1754079042539,-460.0,0.00020551,2]
[376686294,1754079042549,-460.0,0.00020551,2]
[376686295,1754079042559,-460.0,0.00020551,2]
[376686296,1754079042569,-557.58,0.00020551,2]
[376686297,1754079042578,-460.0,0.00020551,2]
[376686298,1754079042587,-460.0,0.00020551,2]
[376686299,1754079042596,-221.26113244,0.00020551,2]
[376686300,1754079042606,-460.0,0.00020551,2]
[376686301,1754079042615,-460.0,0.00020551,2]
[376686302,1754079042625,-460.0,0.00020551,2]
[376686303,1754079042634,-559.69,0.00020551,2]
[376686304,1754079042644,-460.0,0.00020551,2]
[376686305,1754079042653,-460.0,0.00020551,2]
[376686306,1754079042663,-266.74875445,0.00020551,2]
[376686307,1754079042673,-1144.77,0.00020551,2]
[376686308,1754079042682,-460.0,0.00020551,2]
[376686309,1754079042691,-460.0,0.00020551,2]
[376686310,1754079042701,-460.0,0.00020551,2]
[376686311,1754079042710,-460.0,0.00020551,2]
[376686312,1754079042720,-460.0,0.00020551,2]
[376686313,1754079042729,-460.0,0.00020551,2]
[376686314,1754079042738,-460.0,0.00020551,2]
[376686315,1754079042747,-460.0,0.00020551,2]
[376686316,1754079042757,-460.0,0.00020551,2]
[376686317,1754079042767,-460.0,0.00020551,2]
[376686318,1754079042776,-460.0,0.00020551,2]
[376686319,1754079042788,-532.94,0.00020551,2]
[376686320,1754079042796,-460.0,0.00020551,2]
[376686321,1754079042807,-460.0,0.00020552,2]
[376686322,1754079042816,-460.0,0.00020552,2]
[376686323,1754079042826,-460.0,0.00020552,2]
[376686324,1754079042835,-460.0,0.00020552,2]
[376686325,1754079042844,-460.0,0.00020552,2]
[376686326,1754079042854,-460.0,0.00020552,2]
[376686327,1754079042863,-460.0,0.00020552,2]
[376686328,1754079042872,-460.0,0.00020553,2]
[376686329,1754079042882,-2538.9,0.00020553,2]
[376686330,1754079042891,-460.0,0.00020553,2]
[376686331,1754079042900,-460.0,0.00020553,2]
[376686332,1754079042911,-460.0,0.00020554,2]
[376686333,1754079042920,-460.0,0.00020554,2]
[376686334,1754079042929,-200.0,0.00020573,2]
[376686335,1754079042938,-1000.0,0.00020621,2]
[376686336,1754079042948,-1000.0,0.00020621,2]
[376686337,1754079042957,-638.40224091,0.00020621,2]
[376686338,1754079042966,-1000.0,0.00020621,2]
[376686339,1754079042975,-1000.0,0.00020621,2]
[376686340,1754079042984,-460.0,0.00020824,2]
[376686341,1754079042993,-7075.94,0.00020824,2]
[376686342,1754079043003,-460.0,0.00020824,2]
[376686343,1754079043013,-460.0,0.00020824,2]
[376686344,1754079043022,-460.0,0.00020824,2]
[376686345,1754079043032,-664.22,0.00020824,2]
[376686346,1754079043042,-802.05,0.00020824,2]
[376686347,1754079043051,-460.0,0.00020825,2]
[376686348,1754079043060,-460.0,0.00020825,2]
[376686349,1754079043070,-460.0,0.00020825,2]
[376686350,1754079043079,-460.0,0.00020825,2]
[376686351,1754079043089,-460.0,0.00020825,2]
[376686352,1754079043099,-460.0,0.00020825,2]
[376686353,1754079043111,-460.0,0.00020825,2]
[376686354,1754079043121,-557.58,0.00020825,2]
[376686355,1754079043130,-460.0,0.00020825,2]
[376686356,1754079043139,-460.0,0.00020825,2]
[376686357,1754079043149,-546.44199997,0.00020825,2]
[376686358,1754079043158,-460.0,0.00020825,2]
[376686359,1754079043167,-460.0,0.00020825,2]
[376686360,1754079043178,-559.69,0.00020825,2]
[376686361,1754079043188,-460.0,0.00020825,2]
[376686362,1754079043196,-460.0,0.00020825,2]
[376686363,1754079043206,-1144.77,0.00020825,2]
[376686364,1754079043215,-475.36339941,0.00020825,2]
[376686365,1754079043225,-460.0,0.00020825,2]
[376686366,1754079043234,-460.0,0.00020825,2]
[376686367,1754079043243,-424.09753513,0.00020825,2]
[376686368,1754079043253,-460.0,0.00020825,2]
[376686369,1754079043262,-460.0,0.00020825,2]
[376686370,1754079043272,-460.0,0.00020825,2]
[376686371,1754079043283,-460.0,0.00020825,2]
[376686372,1754079043292,-234.00859629,0.00020825,2]
[376686373,1754079043302,-460.0,0.00020825,2]
[376686374,1754079043312,-532.94,0.00020825,2]
[376686375,1754079043321,-460.0,0.00020825,2]
[376686376,1754079043331,-460.0,0.00020826,2]
[376686377,1754079043340,-460.0,0.00020826,2]
[376686378,1754079043350,-460.0,0.00020826,2]
[376686379,1754079043360,-460.0,0.00020826,2]
[376686380,1754079043369,-460.0,0.00020826,2]
[376686381,1754079043378,-460.0,0.00020827,2]
[376686382,1754079043388,-2538.9,0.00020827,2]
[376686383,1754079043397,-460.0,0.00020828,2]
[376686384,1754079043407,-227.33,0.00020828,2]
[376686385,1754079043416,-500.0,0.00020868,2]
[376686386,1754079043425,-510.43727029,0.00020923,2]
[376686387,1754079043434,-1717.54,0.00021089,3]
[376686388,1754079043444,-858.78,0.00021089,3]
[376686389,1754079043454,-429.38,0.00021089,3]
[376686390,1754079043463,-460.0,0.00021098,2]
[376686391,1754079043472,-7075.94,0.00021098,2]
[376686392,1754079043482,-460.0,0.00021098,2]
[376686393,1754079043491,-460.0,0.00021098,2]
[376686394,1754079043500,-460.0,0.00021098,2]
[376686395,1754079043510,-664.22,0.00021098,2]
[376686396,1754079043519,-802.05,0.00021098,2]
[376686397,1754079043529,-421.46624981,0.00021099,2]
[376686398,1754079043539,-460.0,0.00021099,2]
[376686399,1754079043548,-460.0,0.00021099,2]
[376686400,1754079043557,-460.0,0.00021099,2]
[376686401,1754079043566,-460.0,0.00021099,2]
[376686402,1754079043576,-460.0,0.00021099,2]
[376686403,1754079043585,-557.58,0.00021099,2]
[376686404,1754079043595,-460.0,0.00021099,2]
[376686405,1754079043605,-460.0,0.00021099,2]
[376686406,1754079043614,-460.0,0.00021099,2]
[376686407,1754079043624,-460.0,0.00021099,2]
[376686408,1754079043633,-559.69,0.00021099,2]
[376686409,1754079043642,-460.0,0.00021099,2]
[376686410,1754079043651,-460.0,0.00021099,2]
[376686411,1754079043661,-1144.77,0.00021099,2]
[376686412,1754079043670,-460.0,0.00021099,2]
[376686413,1754079043680,-460.0,0.00021099,2]
[376686414,1754079043689,-225.96403733,0.00021099,2]
[376686415,1754079043699,-460.0,0.00021099,2]
[376686416,1754079043709,-460.0,0.00021099,2]
[376686417,1754079043719,-460.0,0.00021099,2]
[376686418,1754079043728,-532.94,0.00021099,2]
[376686419,1754079043737,-460.0,0.00021099,2]
[376686420,1754079043748,-460.0,0.000211,2]
[376686421,1754079043757,-460.0,0.000211,2]
[376686422,1754079043767,-460.0,0.000211,2]
[376686423,1754079043777,-460.0,0.00021101,2]
[376686424,1754079043787,-2538.9,0.00021101,2]
[376686425,1754079043797,-460.0,0.00021102,2]
[376686426,1754079043807,-309.6882809,0.00021121,2]
[376686427,1754079043816,-420.0,0.00021194,2]
[376686428,1754079043826,-203.48585507,0.00021233,4]
[376686429,1754079043835,-460.0,0.00021372,2]
[376686430,1754079043845,-7075.94,0.00021372,2]
[376686431,1754079043854,-460.0,0.00021372,2]
[376686432,1754079043863,-180.14,0.00021372,2]
[376686433,1754079043873,-460.0,0.00021372,2]
[376686434,1754079043882,-664.22,0.00021372,2]
[376686435,1754079043892,-802.05,0.00021372,2]
[376686436,1754079043901,-460.0,0.00021373,2]
[376686437,1754079043911,-460.0,0.00021373,2]
[376686438,1754079043920,-460.0,0.00021373,2]
[376686439,1754079043929,-460.0,0.00021373,2]
[376686440,1754079043939,-557.58,0.00021373,2]
[376686441,1754079043949,-460.0,0.00021373,2]
[376686442,1754079043959,-460.0,0.00021373,2]
[376686443,1754079043969,-460.0,0.00021373,2]
[376686444,1754079043978,-559.69,0.00021373,2]
[376686445,1754079043988,-460.0,0.00021373,2]
[376686446,1754079043998,-460.0,0.00021373,2]
[376686447,1754079044008,-1144.77,0.00021373,2]
[376686448,1754079044017,-460.0,0.00021373,2]
[376686449,1754079044027,-460.0,0.00021373,2]
[376686450,1754079044042,-460.0,0.00021373,2]
[376686451,1754079044052,-460.0,0.00021373,2]
[376686452,1754079044061,-460.0,0.00021373,2]
[376686453,1754079044071,-532.94,0.00021373,2]
[376686454,1754079044080,-460.0,0.00021373,2]
[376686455,1754079044091,-414.56,0.00021374,2]
[376686456,1754079044101,-460.0,0.00021374,2]
[376686457,1754079044113,-460.0,0.00021374,2]
[376686458,1754079044123,-460.0,0.00021375,2]
[376686459,1754079044133,-2538.9,0.00021375,2]
[376686460,1754079044259,-505.27474466,0.00021453,2]
[376686461,1754079044269,-500.0,0.00021453,2]
[376686462,1754079044281,-160.0,0.0002156,2]
[376686463,1754079044291,-460.0,0.00021646,2]
[376686464,1754079044300,-7075.94,0.00021646,2]
[376686465,1754079044310,-460.0,0.00021646,2]
[376686466,1754079044320,-460.0,0.00021646,2]
[376686467,1754079044329,-802.05,0.00021646,2]
[376686468,1754079044338,-664.22,0.00021646,2]
[376686469,1754079044349,-460.0,0.00021647,2]
[376686470,1754079044358,-460.0,0.00021647,2]
[376686471,1754079044367,-557.58,0.00021647,2]
[376686472,1754079044378,-153.9473635,0.00021647,2]
[376686473,1754079044387,-460.0,0.00021647,2]
[376686474,1754079044397,-460.0,0.00021647,2]
[376686475,1754079044406,-559.69,0.00021647,2]
[376686476,1754079044415,-460.0,0.00021647,2]
[376686477,1754079044425,-420.79500683,0.00021647,2]
[376686478,1754079044434,-1144.77,0.00021647,2]
[376686479,1754079044444,-460.0,0.00021647,2]
[376686480,1754079044453,-460.0,0.00021647,2]
[376686481,1754079044463,-460.0,0.00021647,2]
[376686482,1754079044472,-460.0,0.00021647,2]
[376686483,1754079044481,-472.22082333,0.00021647,2]
[376686484,1754079044491,-532.94,0.00021647,2]
[376686485,1754079044501,-460.0,0.00021647,2]
[376686486,1754079044510,-460.0,0.00021648,2]
[376686487,1754079044520,-460.0,0.00021648,2]
[376686488,1754079044534,-460.0,0.00021649,2]
[376686489,1754079044544,-2538.9,0.00021649,2]
[376686491,1754079044554,-200.0,0.00021786,15]
[376686493,1754079044563,-200.0,0.00021786,15]
[376686495,1754079044573,-200.0,0.00021786,15]
[376686498,1754079044582,-200.0,0.00021786,15]
[376686500,1754079044592,-320.0,0.00021786,15]
[376686502,1754079044602,-626.67817094,0.000218,2]
[376686504,1754079044611,-503.65022164,0.00021876,2]
[376686506,1754079044620,-150.95560251,0.00021918,2]
[376686508,1754079044629,-410.13,0.0002192,2]
[376686510,1754079044639,-7075.94,0.0002192,2]
[376686512,1754079044648,-460.0,0.0002192,2]
[376686514,1754079044658,-460.0,0.0002192,2]
[376686517,1754079044667,-802.05,0.0002192,2]
[376686519,1754079044677,-664.22,0.0002192,2]
[376686520,1754079044686,-460.0,0.00021921,2]
[376686523,1754079044696,-460.0,0.00021921,2]
[376686525,1754079044706,-557.58,0.00021921,2]
[376686527,1754079044715,-460.0,0.00021921,2]
[376686530,1754079044725,-367.89175208,0.00021921,2]
[376686533,1754079044736,-559.69,0.00021921,2]
[376686536,1754079044745,-460.0,0.00021921,2]
[376686539,1754079044755,-1144.77,0.00021921,2]
[376686541,1754079044764,-512.81,0.00021921,2]
[376686544,1754079044773,-522.68,0.00021921,2]
[376686548,1754079044787,-460.0,0.00021921,2]
[376686552,1754079044796,-460.0,0.00021921,2]
[376686556,1754079044807,-532.94,0.00021921,2]
[376686560,1754079044818,-460.0,0.00021921,2]
[376686562,1754079044828,-460.0,0.00021922,2]
[376686565,1754079044837,-460.0,0.00021922,2]
[376686567,1754079044847,-460.0,0.00021923,2]
[376686569,1754079044856,-2538.9,0.00021923,2]
[376686571,1754079044865,-260.0,0.00022108,2]
[376686573,1754079044875,-7075.94,0.00022194,2]
[376686575,1754079044886,-460.0,0.00022194,2]
[376686577,1754079044896,-460.0,0.00022194,2]
[376686579,1754079044906,-802.05,0.00022194,2]
[376686581,1754079044916,-664.22,0.00022194,2]
[376686583,1754079044926,-460.0,0.00022195,2]
[376686586,1754079044935,-460.0,0.00022195,2]
[376686588,1754079044953,-557.58,0.00022195,2]
[376686589,1754079044963,-460.0,0.00022195,2]
[376686592,1754079044973,-559.69,0.00022195,2]
[376686594,1754079044983,-1144.77,0.00022195,2]
[376686596,1754079044993,-460.0,0.00022195,2]
[376686598,1754079045003,-460.0,0.00022195,2]
[376686600,1754079045013,-532.94,0.00022195,2]
[376686602,1754079045022,-460.0,0.00022195,2]
[376686603,1754079045034,-460.0,0.00022196,2]
[376686606,1754079045044,-694.05,0.00022196,2]
[376686607,1754079045054,-460.0,0.00022197,2]
[376686609,1754079045063,-2538.9,0.00022197,2]
[376686610,1754079045073,-510.43727029,0.00022215,2]
[376686611,1754079045083,-375.798,0.0002226,2]
[376686612,1754079045093,-160.0,0.0002242,2]
[376686613,1754079045106,-160.0,0.0002242,2]
[376686614,1754079045115,-215.03686253,0.0002242,2]
[376686615,1754079045125,-12644.26590849,0.0002242,2]
[376686616,1754079045135,-160.0,0.00022421,2]
[376686617,1754079045145,-7075.94,0.00022468,2]
[376686618,1754079045155,-460.0,0.00022468,2]
[376686619,1754079045165,-460.0,0.00022468,2]
[376686620,1754079045175,-802.05,0.00022468,2]
[376686621,1754079045184,-664.22,0.00022468,2]
[376686622,1754079045195,-460.0,0.00022469,2]
[376686623,1754079045205,-460.0,0.00022469,2]
[376686624,1754079045214,-557.58,0.00022469,2]
[376686625,1754079045224,-460.0,0.00022469,2]
[376686626,1754079045233,-559.69,0.00022469,2]
[376686627,1754079045242,-1144.77,0.00022469,2]
[376686628,1754079045252,-460.0,0.00022469,2]
[376686629,1754079045262,-460.0,0.00022469,2]
[376686630,1754079045270,-532.94,0.00022469,2]
[376686631,1754079045280,-460.0,0.00022469,2]
[376686632,1754079045295,-460.0,0.0002247,2]
[376686633,1754079045304,-166.6406088,0.00022471,2]
[376686634,1754079045314,-2538.9,0.00022471,2]
[376686635,1754079045323,-1000.0,0.000225,2]
[376686636,1754079045332,-203.48585507,0.00022567,7]
[376686638,1754079045341,-642.25,0.00022627,3]
[376686640,1754079045351,-7075.94,0.00022742,2]
[376686642,1754079045360,-460.0,0.00022742,2]
[376686644,1754079045370,-460.0,0.00022742,2]
[376686646,1754079045380,-802.05,0.00022742,2]
[376686648,1754079045389,-664.22,0.00022742,2]
[376686650,1754079045399,-152.9,0.00022743,2]
[376686652,1754079045409,-460.0,0.00022743,2]
[376686654,1754079045418,-557.58,0.00022743,2]
[376686656,1754079045428,-460.0,0.00022743,2]
[376686658,1754079045437,-559.69,0.00022743,2]
[376686660,1754079045447,-1144.77,0.00022743,2]
[376686662,1754079045457,-460.0,0.00022743,2]
[376686664,1754079045466,-460.0,0.00022743,2]
[376686665,1754079045476,-532.94,0.00022743,2]
[376686666,1754079045485,-460.0,0.00022743,2]
[376686668,1754079045495,-460.0,0.00022744,2]
[376686670,1754079045504,-2538.9,0.00022745,2]
[376686673,1754079045514,-7075.94,0.00023016,2]
[376686675,1754079045523,-460.0,0.00023016,2]
[376686676,1754079045535,-460.0,0.00023016,2]
[376686677,1754079045554,-802.05,0.00023016,2]
[376686678,1754079045572,-664.22,0.00023016,2]
[376686680,1754079045581,-460.0,0.00023017,2]
[376686683,1754079045591,-557.58,0.00023017,2]
[376686684,1754079045601,-460.0,0.00023017,2]
[376686686,1754079045611,-559.69,0.00023017,2]
[376686688,1754079045621,-1144.77,0.00023017,2]
[376686690,1754079045631,-460.0,0.00023017,2]
[376686692,1754079045641,-460.0,0.00023017,2]
[376686694,1754079045650,-532.94,0.00023017,2]
[376686696,1754079045660,-460.0,0.00023017,2]
[376686697,1754079045670,-586.32,0.00023018,2]
[376686699,1754079045679,-2538.9,0.00023019,2]
[376686700,1754079045689,-312.0,0.00023091,2]
[376686701,1754079045698,-7075.94,0.0002329,2]
[376686702,1754079045707,-460.0,0.0002329,2]
[376686703,1754079045717,-460.0,0.0002329,2]
[376686704,1754079045727,-802.05,0.0002329,2]
[376686706,1754079045736,-664.22,0.0002329,2]
[376686708,1754079045745,-460.0,0.00023291,2]
[376686710,1754079045755,-557.58,0.00023291,2]
[376686712,1754079045764,-460.0,0.00023291,2]
[376686714,1754079045774,-559.69,0.00023291,2]
[376686716,1754079045786,-1144.77,0.00023291,2]
[376686718,1754079045795,-460.0,0.00023291,2]
[376686719,1754079045805,-460.0,0.00023291,2]
[376686721,1754079045815,-532.94,0.00023291,2]
[376686723,1754079045824,-353.3,0.00023291,2]
[376686725,1754079045833,-694.05,0.00023292,2]
[376686727,1754079045843,-2538.9,0.00023293,2]
[376686728,1754079045852,-510.43727029,0.00023508,2]
[376686729,1754079045861,-448.47,0.00023556,10]
[376686730,1754079045871,-855.2,0.00023556,10]
[376686731,1754079045880,-1301.88,0.00023556,10]
[376686732,1754079045890,-7075.94,0.00023564,2]
[376686733,1754079045901,-460.0,0.00023564,2]
[376686735,1754079045910,-460.0,0.00023564,2]
[376686737,1754079045920,-802.05,0.00023564,2]
[376686739,1754079045929,-664.22,0.00023564,2]
[376686742,1754079045938,-460.0,0.00023565,2]
[376686744,1754079045947,-557.58,0.00023565,2]
[376686746,1754079045956,-460.0,0.00023565,2]
[376686748,1754079045966,-559.69,0.00023565,2]
[376686750,1754079045975,-1144.77,0.00023565,2]
[376686752,1754079045984,-460.0,0.00023565,2]
[376686754,1754079045994,-460.0,0.00023565,2]
[376686756,1754079046003,-532.94,0.00023565,2]
[376686758,1754079046013,-2538.9,0.00023567,2]
[376686760,1754079046022,-10053.33,0.000238,2]
[376686762,1754079046034,-7075.94,0.00023838,2]
[376686764,1754079046043,-460.0,0.00023838,2]
[376686766,1754079046053,-460.0,0.00023838,2]
[376686768,1754079046063,-802.05,0.00023838,2]
[376686771,1754079046072,-664.22,0.00023838,2]
[376686773,1754079046082,-460.0,0.00023839,2]
[376686775,1754079046091,-557.58,0.00023839,2]
[376686777,1754079046103,-460.0,0.00023839,2]
[376686779,1754079046118,-559.69,0.00023839,2]
[376686781,1754079046127,-1144.77,0.00023839,2]
[376686783,1754079046136,-460.0,0.00023839,2]
[376686785,1754079046146,-460.0,0.00023839,2]
[376686787,1754079046156,-532.94,0.00023839,2]
[376686789,1754079046165,-2538.9,0.00023841,2]
[376686791,1754079046174,-203.48585507,0.000239,10]
[376686793,1754079046186,-200.0,0.00023921,15]
[376686795,1754079046195,-200.0,0.00023921,15]
[376686797,1754079046204,-200.0,0.00023921,15]
[376686799,1754079046214,-200.0,0.00023921,15]
[376686801,1754079046223,-200.0,0.00023921,15]
[376686803,1754079046233,-200.0,0.00023921,15]
[376686805,1754079046242,-366.0,0.00023921,15]
[376686807,1754079046251,-800.4,0.00024,7]
[376686809,1754079046261,-2225.15,0.000241,7]
[376686811,1754079046270,-7075.94,0.00024112,2]
[376686813,1754079046282,-460.0,0.00024112,2]
[376686815,1754079046292,-460.0,0.00024112,2]
[376686817,1754079046308,-802.05,0.00024112,2]
[376686819,1754079046318,-664.22,0.00024112,2]
[376686821,1754079046328,-460.0,0.00024113,2]
[376686823,1754079046337,-557.58,0.00024113,2]
[376686825,1754079046346,-460.0,0.00024113,2]
[376686827,1754079046356,-559.69,0.00024113,2]
[376686829,1754079046365,-1144.77,0.00024113,2]
[376686831,1754079046374,-460.0,0.00024113,2]
[376686833,1754079046383,-460.0,0.00024113,2]
[376686835,1754079046393,-532.94,0.00024113,2]
[376686837,1754079046402,-2538.9,0.00024115,2]
[376686839,1754079046412,-500.0,0.00024383,10]
[376686841,1754079046421,-500.0,0.00024383,10]
[376686843,1754079046430,-380.0,0.00024383,10]
[376686845,1754079046439,-7075.94,0.00024386,2]
[376686848,1754079046449,-460.0,0.00024386,2]
[376686851,1754079046458,-460.0,0.00024386,2]
[376686854,1754079046467,-802.05,0.00024386,2]
[376686857,1754079046477,-664.22,0.00024386,2]
[376686860,1754079046486,-460.0,0.00024387,2]
[376686863,1754079046496,-557.58,0.00024387,2]
[376686865,1754079046505,-460.0,0.00024387,2]
[376686868,1754079046514,-559.69,0.00024387,2]
[376686870,1754079046522,-1144.77,0.00024387,2]
[376686872,1754079046532,-460.0,0.00024387,2]
[376686874,1754079046541,-186.28,0.00024387,2]
[376686876,1754079046550,-532.94,0.00024387,2]
[376686878,1754079046560,-2538.9,0.00024389,2]
[376686880,1754079046576,-694.05,0.00024424,2]
[376686882,1754079046588,-161.63,0.00024425,7]
[376686884,1754079046597,-161.63,0.00024525,7]
[376686887,1754079046607,-161.63,0.00024625,7]
[376686888,1754079046616,-157.547031,0.00024657,9]
[376686891,1754079046626,-7075.94,0.0002466,2]
[376686892,1754079046635,-460.0,0.0002466,2]
[376686894,1754079046644,-460.0,0.0002466,2]
[376686897,1754079046656,-802.05,0.0002466,2]
[376686899,1754079046667,-664.22,0.0002466,2]
[376686901,1754079046676,-346.6,0.00024661,2]
[376686906,1754079046710,-557.58,0.00024661,2]
[376686908,1754079046720,-460.0,0.00024661,2]
[376686910,1754079046729,-559.69,0.00024661,2]